Workbook

Sheet Cyanotoxin-Calc
B1: Author: Guy Schott, P.E., guy.schott@waterboards.ca.gov, 707-576-2732 | F1: V.2: Last updated August 21, 2015
B3: Microcystin-LR (MC-LR) Reduction via Free Chlorine Residual | J3: Cylindrospermopsin (CYN) Reduction via Free Chlorine Residual
B5: Model 1 | C5: CT Calculation for Microcystin-LR (MC-LR) | J5: Model 1 | K5: CT Calculation for Cylindrospermopsin (CYN)
B6: Enter water quality parameters: | J6: Enter water quality parameters:
B7: pH | C7: 8 | D7: unit | E7: Results: | J7: pH | K7: 8.5 | L7: unit | M7: Results:
B8: Temperature | C8: 15 | D8: oC | E8: CT | F8: =F9*60/(1000*2*35.45) -> 0.2016083433 | G8: mol ∙ sec | J8: Temperature | K8: 10 | L8: oC | M8: CT | N8: =N9*60/(1000*2*35.45) -> 0.0613563367 | O8: mol ∙ sec
B9: Initial MC-LR | C9: 100 | D9: ug/L | E9: CT | F9: =-LN(_Mc/_Mco)/(((2.07*10^7)*(10^(-_pHmicro))^2+(3.152*_Tempmicro+53.74)*10^-_pHmicro+(0.181*_Tempmicro+3.2)*10^-7.5)/(10^-7.5+10^-_pHmicro))*(35.45*2*1000/60) -> 238.233859 | G9: mg/L ∙ min | J9: Initial CYN | K9: 500 | L9: ug/L | M9: CT | N9: =LN(K10/K9)*1/(-EXP((0.02318747*K7^5-0.73000317*K7^4+8.86614878*K7^3-52.12019339*K7^2+149.8450036*K7-152.54823628)-32700/(8.3145*(273.15+K8))))/(1/1000/70.096)/60 -> 72.50273787 | O9: mg/L ∙ min
B10: Final MC-LR | C10: 0.3 | D10: ug/L | E10: Log (%) Reduction | F10: =TEXT(LOG(C9/C10),"#0.0") & ", (" & TEXT((1-C10/C9)*100,"#.0") & "%)" -> 2.5, (99.7%) | G10: unit | J10: Final CYN | K10: 0.7 | L10: ug/L | M10: Log (%) Reduction | N10: =TEXT(LOG(K9/K10),"#0.0") & ", (" & TEXT((1-K10/K9)*100,"#.0") & "%)" -> 2.9, (99.9%) | O10: unit
B12: Model 2 | C12: Initial Microcystin-LR (MC-LR) Calculation | J12: Model 2 | K12: Initial Cylindrospermospsin (CYN) Calculation
B13: Enter water quality parameters: | J13: Enter water quality parameters:
B14: pH | C14: 8 | D14: unit | E14: Results: | J14: pH | K14: 8.7 | L14: unit | M14: Results:
B15: Temperature | C15: 20 | D15: oC | E15: CT | F15: =_CTop*60/(1000*2*35.45) -> 0.101551481 | G15: mol ∙ sec | J15: Temperature | K15: 20 | L15: oC | M15: CT | N15: =K16*60/(1000*2*35.45) -> 0.02961918195 | O15: mol ∙ sec
B16: Operating CT | C16: 120 | D16: mg/L ∙ min | E16: Initial MC-LR | F16: =EXP(((2.07*10^7)*(10^(-_pHmicro2))^2+(3.152*_Tempmicro2+53.74)*10^-_pHmicro2+(0.181*_Tempmicro2+3.2)*10^-7.5)/(10^-7.5+10^-_pHmicro2)*F15)*_MCf2 -> 8.815123848 | G16: ug/L | J16: Operating CT | K16: 35 | L16: mg/L ∙ min | M16: Initial CYN | N16: =IF((EXP((-EXP((0.02318747*K14^5-0.73000317*K14^4+8.86614878*K14^3-52.12019339*K14^2+149.8450036*K14-152.54823628)-32700/(8.3145*(273.15+K15))))*K16*60*1/1000/70.096)/K17)^-1>10000,">10,000",(EXP((-EXP((0.02318747*K14^5-0.73000317*K14^4+8.86614878*K14^3-52.12019339*K14^2+149.8450036*K14-152.54823628)-32700/(8.3145*(273.15+K15))))*K16*60*1/1000/70.096)/K17)^-1) -> 15.41584232 | O16: ug/L
B17: Final MC-LR | C17: 0.3 | D17: ug/L | E17: Log (%) Reduction | F17: =TEXT(LOG(F16/C17),"#0.0") & ", (" & TEXT((1-C17/F16)*100,"#.0") & "%)" -> 1.5, (96.6%) | G17: unit | J17: Final CYN | K17: 0.7 | L17: ug/L | M17: Log (%) Reduction | N17: =IF((EXP((-EXP((0.02318747*K14^5-0.73000317*K14^4+8.86614878*K14^3-52.12019339*K14^2+149.8450036*K14-152.54823628)-32700/(8.3145*(273.15+K15))))*K16*60*1/1000/70.096)/K17)^-1>10000,">4.0 (100%)",TEXT(LOG(N16/K17),"#0.0") & ", (" & TEXT((1-K17/N16)*100,"#.0") & "%)") -> 1.3, (95.5%) | O17: unit
B19: Model 3 | C19: Initial Microcystin-LR (MC-LR) Calculation | J19: Model 3 | K19: Initial Cylindrospermopsin (CYN) Calculation
B20: Enter water quality parameters: | J20: Enter water quality parameters:
B21: pH | C21: 7 | D21: unit | E21: Results: | J21: pH | K21: 8.8 | L21: unit | M21: Results:
B22: Temperature | C22: 10 | D22: oC | E22: CT | F22: =F23*60/(1000*2*35.45) -> 0.08462623413 | G22: mol ∙ sec | J22: Temperature | K22: 15 | L22: oC | M22: CT | N22: =N23*60/(1000*2*35.45) -> 0.05923836389 | O22: mol ∙ sec
B23: Chlorine Residual | C23: 2 | D23: mg/L | E23: Operating CT | F23: =C23*C24*C25 -> 100 | G23: mg/L ∙ min | J23: Chlorine Residual | K23: 1 | L23: mg/L | M23: Operating CT | N23: =K23*K24*K25 -> 70 | O23: mg/L ∙ min
B24: HRT | C24: 50 | D24: minutes | E24: Initial MC-LR | F24: =EXP(((2.07*10^7)*(10^(-_pHmicro3))^2+(3.152*_Tempmicro3+53.74)*10^-_pHmicro3+(0.181*_Tempmicro3+3.2)*10^-7.5)/(10^-7.5+10^-_pHmicro3)*F22)*_Mcf3 -> 303.9011324 | G24: ug/L | J24: HRT | K24: 140 | L24: minutes | M24: Initial CYN | N24: =IF((EXP((-EXP((0.02318747*K21^5-0.73000317*K21^4+8.86614878*K21^3-52.12019339*K21^2+149.8450036*K21-152.54823628)-32700/(8.3145*(273.15+K22))))*N23*60*1/1000/70.096)/K26)^-1>10000,">10,000",(EXP((-EXP((0.02318747*K21^5-0.73000317*K21^4+8.86614878*K21^3-52.12019339*K21^2+149.8450036*K21-152.54823628)-32700/(8.3145*(273.15+K22))))*N23*60*1/1000/70.096)/K26)^-1) -> 33.1769673 | O24: ug/L
B25: Baffling Factor | C25: 1 | D25: t10/T | E25: Final MC-LR | F25: =C26 -> 1 | G25: ug/L | J25: Baffling Factor | K25: 0.5 | L25: t10/T | M25: Final CYN | N25: =K26 -> 0.7 | O25: ug/L
B26: Final MC-LR | C26: 1 | D26: ug/L | E26: Log (%) Reduction | F26: =TEXT(LOG(F24/C26),"#0.0") & ", (" & TEXT((1-C26/F24)*100,"#.0") & "%)" -> 2.5, (99.7%) | G26: unit | J26: Final CYN | K26: 0.7 | L26: ug/L | M26: Log (%) Reduction | N26: =IF((EXP((-EXP((0.02318747*K21^5-0.73000317*K21^4+8.86614878*K21^3-52.12019339*K21^2+149.8450036*K21-152.54823628)-32700/(8.3145*(273.15+K22))))*N23*60*1/1000/70.096)/K26)^-1>10000,">4.0 (100%)",TEXT(LOG(N24/K26),"#.0") & ", (" & TEXT((1-K26/N24)*100,"#.0") & "%)") -> 1.7, (97.9%) | O26: unit
B29: Directions: | J29: Directions:
B30: Model 1: Calculates the CT value based on user inputs | J30: Model 1: Calculates the CT value based on user inputs
B31: of water pH, temperature, initial and final microcystin-LR. | J31: of water pH, temperature, initial and final Cylindrospermopsin (CYN).
B32: The user final MC-LR may be inputted down to 0.1 ug/L. | J32: The user final CYN may be inputted down to 0.1 ug/L.
B34: Model 2: Calculates the initial MC-LR that can be treated based on user | J34: Model 2: Calculates the initial MC-LR that can be treated based on user
B35: inputs of water pH, temperature, operating CT and final microcystin-LR. | J35: inputs of water pH, temperature, operating CT and final microcystin-LR.
B36: The user final MC-LR may be inputted down to 0.1 ug/L. | J36: The user final CYN may be inputted down to 0.1 ug/L.
B38: Model 3: Calculates the initial MC-LR that can be treated based on user | J38: Model 3: Calculates the initial CYN that can be treated based on user
B39: inputs of water pH, temperature, chlorine residual, HRT, | J39: inputs of water pH, temperature, chlorine residual, HRT,
B40: clearwell baffling factor and final microcystin-LR. | J40: clearwell baffling factor and final Cylindrospermopsin.
B41: The user final MC-LR may be inputted down to 0.1 ug/L. | J41: The user final CYN may be inputted down to 0.1 ug/L.

Sheet CT Tables
B1: Author: Guy Schott, P.E., guy.schott@waterboards.ca.gov, 707-576-2732
C3: CT Table for Microcystin-LR based on Free Chlorine Residual
D5: Temperature: 10 oC | K5: Temperature: 20 oC
D6: Log Reduction of Microcystin-LR | K6: Log Reduction of Microcystin-LR
C7: pH | D7: 0.5 | E7: 1 | F7: 1.5 | G7: 2 | H7: 2.5 | I7: 3 | J7: pH | K7: 0.5 | L7: 1 | M7: 1.5 | N7: 2 | O7: 2.5 | P7: 3
C8: 6 | D8: =$D$7*E8 -> 13.225 | E8: 26.45 | F8: =E8*$F$7 -> 39.675 | G8: =$G$7*E8 -> 52.9 | H8: =$H$7*E8 -> 66.125 | I8: =$I$7*E8 -> 79.35 | J8: 6 | K8: =$D$7*L8 -> 10.195 | L8: 20.39 | M8: =L8*$F$7 -> 30.585 | N8: =$G$7*L8 -> 40.78 | O8: =$H$7*L8 -> 50.975 | P8: =$I$7*L8 -> 61.17
C9: 6.5 | D9: 16.215 | E9: 32.43 | F9: 48.645 | G9: 64.86 | H9: 81.075 | I9: 97.29 | J9: 6.5 | K9: 12.07 | L9: 24.14 | M9: 36.21 | N9: 48.28 | O9: 60.35 | P9: 72.42
C10: 7 | D10: 20.14 | E10: 40.28 | F10: 60.42 | G10: 80.56 | H10: 100.7 | I10: 120.84 | J10: 7 | K10: 14.8 | L10: 29.6 | M10: 44.4 | N10: 59.2 | O10: 74 | P10: 88.8
C11: 7.5 | D11: 29.925 | E11: 59.85 | F11: 89.775 | G11: 119.7 | H11: 149.625 | I11: 179.55 | J11: 7.5 | K11: 21.9 | L11: 43.8 | M11: 65.7 | N11: 87.6 | O11: 109.5 | P11: 131.4
C12: 8 | D12: 55.895 | E12: 111.79 | F12: 167.685 | G12: 223.58 | H12: 279.475 | I12: 335.37 | J12: 8 | K12: 40.87 | L12: 81.74 | M12: 122.61 | N12: 163.48 | O12: 204.35 | P12: 245.22
C13: 8.5 | D13: 110.505 | E13: 221.01 | F13: 331.515 | G13: 442.02 | H13: 552.525 | I13: 663.03 | J13: 8.5 | K13: 80.87 | L13: 161.74 | M13: 242.61 | N13: 323.48 | O13: 404.35 | P13: 485.22
C14: 9 | D14: 182.105 | E14: 364.21 | F14: 546.315 | G14: 728.42 | H14: 910.525 | I14: 1092.63 | J14: 9 | K14: 133.49 | L14: 266.98 | M14: 400.47 | N14: 533.96 | O14: 667.45 | P14: 800.94
D15: Temperature: 15 oC | K15: Temperature: 25 oC
D16: Log Reduction of Microcystin-LR | K16: Log Reduction of Microcystin-LR
C17: pH | D17: 0.5 | E17: 1 | F17: 1.5 | G17: 2 | H17: 2.5 | I17: 3 | J17: pH | K17: 0.5 | L17: 1 | M17: 1.5 | N17: 2 | O17: 2.5 | P17: 3
C18: 6 | D18: =$D$7*E18 -> 11.515 | E18: 23.03 | F18: =E18*$F$7 -> 34.545 | G18: =$G$7*E18 -> 46.06 | H18: =$H$7*E18 -> 57.575 | I18: =$I$7*E18 -> 69.09 | J18: 6 | K18: =$D$7*L18 -> 9.145 | L18: 18.29 | M18: =L18*$F$7 -> 27.435 | N18: =$G$7*L18 -> 36.58 | O18: =$H$7*L18 -> 45.725 | P18: =$I$7*L18 -> 54.87
C19: 6.5 | D19: 13.835 | E19: 27.67 | F19: 41.505 | G19: 55.34 | H19: 69.175 | I19: 83.01 | J19: 6.5 | K19: 10.7 | L19: 21.4 | M19: 32.1 | N19: 42.8 | O19: 53.5 | P19: 64.2
C20: 7 | D20: 17.06 | E20: 34.12 | F20: 51.18 | G20: 68.24 | H20: 85.3 | I20: 102.36 | J20: 7 | K20: 13.065 | L20: 26.13 | M20: 39.195 | N20: 52.26 | O20: 65.325 | P20: 78.39
C21: 7.5 | D21: 25.29 | E21: 50.58 | F21: 75.87 | G21: 101.16 | H21: 126.45 | I21: 151.74 | J21: 7.5 | K21: 19.31 | L21: 38.62 | M21: 57.93 | N21: 77.24 | O21: 96.55 | P21: 115.86
C22: 8 | D22: 47.215 | E22: 94.43 | F22: 141.645 | G22: 188.86 | H22: 236.075 | I22: 283.29 | J22: 8 | K22: 36.025 | L22: 72.05 | M22: 108.075 | N22: 144.1 | O22: 180.125 | P22: 216.15
C23: 8.5 | D23: 93.395 | E23: 186.79 | F23: 280.185 | G23: 373.58 | H23: 466.975 | I23: 560.37 | J23: 8.5 | K23: 71.31 | L23: 142.62 | M23: 213.93 | N23: 285.24 | O23: 356.55 | P23: 427.86
C24: 9 | D24: 154.055 | E24: 308.11 | F24: 462.165 | G24: 616.22 | H24: 770.275 | I24: 924.33 | J24: 9 | K24: 117.77 | L24: 235.54 | M24: 353.31 | N24: 471.08 | O24: 588.85 | P24: 706.62
C25: CT units: | D25: mg/L*min | F25: 0.5 Log = 68.4%; 1.0 Log = 90.0%; 1.5 Log = 96.8%; 2 Log = 99.0%; 2.5 Log = 99.7%; 3 Log = 99.9%
C27: CT Table for Cylindrospermopsin (CYN) based on Free Chlorine Residual
D29: Temperature: 10 oC | K29: Temperature: 20 oC
D30: Log Reduction of Cylindrospermospsin | K30: Log Reduction of Cylindrospermospsin
C31: pH | D31: 0.5 | E31: 1 | F31: 1.5 | G31: 2 | H31: 2.5 | I31: 3 | J31: pH | K31: 0.5 | L31: 1 | M31: 1.5 | N31: 2 | O31: 2.5 | P31: 3
C32: 6 | D32: ='CT Tables'!$D$7*E32 -> 4.9005 | E32: 9.801 | F32: =E32*'CT Tables'!$F$7 -> 14.7015 | G32: ='CT Tables'!$G$7*E32 -> 19.602 | H32: ='CT Tables'!$H$7*E32 -> 24.5025 | I32: ='CT Tables'!$I$7*E32 -> 29.403 | J32: 6 | K32: ='CT Tables'!$D$7*L32 -> 3.051 | L32: 6.102 | M32: =L32*'CT Tables'!$F$7 -> 9.153 | N32: ='CT Tables'!$G$7*L32 -> 12.204 | O32: ='CT Tables'!$H$7*L32 -> 15.255 | P32: ='CT Tables'!$I$7*L32 -> 18.306
C33: 6.5 | D33: ='CT Tables'!$D$7*E33 -> 2.5115 | E33: 5.023 | F33: =E33*'CT Tables'!$F$7 -> 7.5345 | G33: ='CT Tables'!$G$7*E33 -> 10.046 | H33: ='CT Tables'!$H$7*E33 -> 12.5575 | I33: ='CT Tables'!$I$7*E33 -> 15.069 | J33: 6.5 | K33: ='CT Tables'!$D$7*L33 -> 1.564 | L33: 3.128 | M33: =L33*'CT Tables'!$F$7 -> 4.692 | N33: ='CT Tables'!$G$7*L33 -> 6.256 | O33: ='CT Tables'!$H$7*L33 -> 7.82 | P33: ='CT Tables'!$I$7*L33 -> 9.384
C34: 7 | D34: ='CT Tables'!$D$7*E34 -> 1.739 | E34: 3.478 | F34: =E34*'CT Tables'!$F$7 -> 5.217 | G34: ='CT Tables'!$G$7*E34 -> 6.956 | H34: ='CT Tables'!$H$7*E34 -> 8.695 | I34: ='CT Tables'!$I$7*E34 -> 10.434 | J34: 7 | K34: ='CT Tables'!$D$7*L34 -> 1.083 | L34: 2.166 | M34: =L34*'CT Tables'!$F$7 -> 3.249 | N34: ='CT Tables'!$G$7*L34 -> 4.332 | O34: ='CT Tables'!$H$7*L34 -> 5.415 | P34: ='CT Tables'!$I$7*L34 -> 6.498
C35: 7.5 | D35: ='CT Tables'!$D$7*E35 -> 1.984 | E35: 3.968 | F35: =E35*'CT Tables'!$F$7 -> 5.952 | G35: ='CT Tables'!$G$7*E35 -> 7.936 | H35: ='CT Tables'!$H$7*E35 -> 9.92 | I35: ='CT Tables'!$I$7*E35 -> 11.904 | J35: 7.5 | K35: ='CT Tables'!$D$7*L35 -> 1.2355 | L35: 2.471 | M35: =L35*'CT Tables'!$F$7 -> 3.7065 | N35: ='CT Tables'!$G$7*L35 -> 4.942 | O35: ='CT Tables'!$H$7*L35 -> 6.1775 | P35: ='CT Tables'!$I$7*L35 -> 7.413
C36: 8 | D36: ='CT Tables'!$D$7*E36 -> 4.024 | E36: 8.048 | F36: =E36*'CT Tables'!$F$7 -> 12.072 | G36: ='CT Tables'!$G$7*E36 -> 16.096 | H36: ='CT Tables'!$H$7*E36 -> 20.12 | I36: ='CT Tables'!$I$7*E36 -> 24.144 | J36: 8 | K36: ='CT Tables'!$D$7*L36 -> 2.505 | L36: 5.01 | M36: =L36*'CT Tables'!$F$7 -> 7.515 | N36: ='CT Tables'!$G$7*L36 -> 10.02 | O36: ='CT Tables'!$H$7*L36 -> 12.525 | P36: ='CT Tables'!$I$7*L36 -> 15.03
C37: 8.5 | D37: ='CT Tables'!$D$7*E37 -> 12.7025 | E37: 25.405 | F37: =E37*'CT Tables'!$F$7 -> 38.1075 | G37: ='CT Tables'!$G$7*E37 -> 50.81 | H37: ='CT Tables'!$H$7*E37 -> 63.5125 | I37: ='CT Tables'!$I$7*E37 -> 76.215 | J37: 8.5 | K37: ='CT Tables'!$D$7*L37 -> 7.91 | L37: 15.82 | M37: =L37*'CT Tables'!$F$7 -> 23.73 | N37: ='CT Tables'!$G$7*L37 -> 31.64 | O37: ='CT Tables'!$H$7*L37 -> 39.55 | P37: ='CT Tables'!$I$7*L37 -> 47.46
C38: 9 | D38: ='CT Tables'!$D$7*E38 -> 40.6185 | E38: 81.237 | F38: =E38*'CT Tables'!$F$7 -> 121.8555 | G38: ='CT Tables'!$G$7*E38 -> 162.474 | H38: ='CT Tables'!$H$7*E38 -> 203.0925 | I38: ='CT Tables'!$I$7*E38 -> 243.711 | J38: 9 | K38: ='CT Tables'!$D$7*L38 -> 25.265 | L38: 50.53 | M38: =L38*'CT Tables'!$F$7 -> 75.795 | N38: ='CT Tables'!$G$7*L38 -> 101.06 | O38: ='CT Tables'!$H$7*L38 -> 126.325 | P38: ='CT Tables'!$I$7*L38 -> 151.59
D39: Temperature: 15 oC | K39: Temperature: 25 oC
D40: Log Reduction of Cylindrospermospsin | K40: Log Reduction of Cylindrospermospsin
C41: pH | D41: 0.5 | E41: 1 | F41: 1.5 | G41: 2 | H41: 2.5 | I41: 3 | J41: pH | K41: 0.5 | L41: 1 | M41: 1.5 | N41: 2 | O41: 2.5 | P41: 3
C42: 6 | D42: ='CT Tables'!$D$7*E42 -> 3.851 | E42: 7.702 | F42: =E42*'CT Tables'!$F$7 -> 11.553 | G42: ='CT Tables'!$G$7*E42 -> 15.404 | H42: ='CT Tables'!$H$7*E42 -> 19.255 | I42: ='CT Tables'!$I$7*E42 -> 23.106 | J42: 6 | K42: ='CT Tables'!$D$7*L42 -> 2.4365 | L42: 4.873 | M42: =L42*'CT Tables'!$F$7 -> 7.3095 | N42: ='CT Tables'!$G$7*L42 -> 9.746 | O42: ='CT Tables'!$H$7*L42 -> 12.1825 | P42: ='CT Tables'!$I$7*L42 -> 14.619
C43: 6.5 | D43: ='CT Tables'!$D$7*E43 -> 1.9735 | E43: 3.947 | F43: =E43*'CT Tables'!$F$7 -> 5.9205 | G43: ='CT Tables'!$G$7*E43 -> 7.894 | H43: ='CT Tables'!$H$7*E43 -> 9.8675 | I43: ='CT Tables'!$I$7*E43 -> 11.841 | J43: 6.5 | K43: ='CT Tables'!$D$7*L43 -> 1.249 | L43: 2.498 | M43: =L43*'CT Tables'!$F$7 -> 3.747 | N43: ='CT Tables'!$G$7*L43 -> 4.996 | O43: ='CT Tables'!$H$7*L43 -> 6.245 | P43: ='CT Tables'!$I$7*L43 -> 7.494
C44: 7 | D44: ='CT Tables'!$D$7*E44 -> 1.3665 | E44: 2.733 | F44: =E44*'CT Tables'!$F$7 -> 4.0995 | G44: ='CT Tables'!$G$7*E44 -> 5.466 | H44: ='CT Tables'!$H$7*E44 -> 6.8325 | I44: ='CT Tables'!$I$7*E44 -> 8.199 | J44: 7 | K44: ='CT Tables'!$D$7*L44 -> 0.8645 | L44: 1.729 | M44: =L44*'CT Tables'!$F$7 -> 2.5935 | N44: ='CT Tables'!$G$7*L44 -> 3.458 | O44: ='CT Tables'!$H$7*L44 -> 4.3225 | P44: ='CT Tables'!$I$7*L44 -> 5.187
C45: 7.5 | D45: ='CT Tables'!$D$7*E45 -> 1.559 | E45: 3.118 | F45: =E45*'CT Tables'!$F$7 -> 4.677 | G45: ='CT Tables'!$G$7*E45 -> 6.236 | H45: ='CT Tables'!$H$7*E45 -> 7.795 | I45: ='CT Tables'!$I$7*E45 -> 9.354 | J45: 7.5 | K45: ='CT Tables'!$D$7*L45 -> 0.9865 | L45: 1.973 | M45: =L45*'CT Tables'!$F$7 -> 2.9595 | N45: ='CT Tables'!$G$7*L45 -> 3.946 | O45: ='CT Tables'!$H$7*L45 -> 4.9325 | P45: ='CT Tables'!$I$7*L45 -> 5.919
C46: 8 | D46: ='CT Tables'!$D$7*E46 -> 3.1625 | E46: 6.325 | F46: =E46*'CT Tables'!$F$7 -> 9.4875 | G46: ='CT Tables'!$G$7*E46 -> 12.65 | H46: ='CT Tables'!$H$7*E46 -> 15.8125 | I46: ='CT Tables'!$I$7*E46 -> 18.975 | J46: 8 | K46: ='CT Tables'!$D$7*L46 -> 2.0005 | L46: 4.001 | M46: =L46*'CT Tables'!$F$7 -> 6.0015 | N46: ='CT Tables'!$G$7*L46 -> 8.002 | O46: ='CT Tables'!$H$7*L46 -> 10.0025 | P46: ='CT Tables'!$I$7*L46 -> 12.003
C47: 8.5 | D47: ='CT Tables'!$D$7*E47 -> 9.982 | E47: 19.964 | F47: =E47*'CT Tables'!$F$7 -> 29.946 | G47: ='CT Tables'!$G$7*E47 -> 39.928 | H47: ='CT Tables'!$H$7*E47 -> 49.91 | I47: ='CT Tables'!$I$7*E47 -> 59.892 | J47: 8.5 | K47: ='CT Tables'!$D$7*L47 -> 6.3155 | L47: 12.631 | M47: =L47*'CT Tables'!$F$7 -> 18.9465 | N47: ='CT Tables'!$G$7*L47 -> 25.262 | O47: ='CT Tables'!$H$7*L47 -> 31.5775 | P47: ='CT Tables'!$I$7*L47 -> 37.893
C48: 9 | D48: ='CT Tables'!$D$7*E48 -> 31.919 | E48: 63.838 | F48: =E48*'CT Tables'!$F$7 -> 95.757 | G48: ='CT Tables'!$G$7*E48 -> 127.676 | H48: ='CT Tables'!$H$7*E48 -> 159.595 | I48: ='CT Tables'!$I$7*E48 -> 191.514 | J48: 9 | K48: ='CT Tables'!$D$7*L48 -> 20.195 | L48: 40.39 | M48: =L48*'CT Tables'!$F$7 -> 60.585 | N48: ='CT Tables'!$G$7*L48 -> 80.78 | O48: ='CT Tables'!$H$7*L48 -> 100.975 | P48: ='CT Tables'!$I$7*L48 -> 121.17
D49: Temperature: 30 oC
D50: Log Reduction of Cylindrospermospsin
C51: pH | D51: 0.5 | E51: 1 | F51: 1.5 | G51: 2 | H51: 2.5 | I51: 3
C52: 6 | D52: ='CT Tables'!$D$7*E52 -> 1.96 | E52: 3.92 | F52: =E52*'CT Tables'!$F$7 -> 5.88 | G52: ='CT Tables'!$G$7*E52 -> 7.84 | H52: ='CT Tables'!$H$7*E52 -> 9.8 | I52: ='CT Tables'!$I$7*E52 -> 11.76
C53: 6.5 | D53: ='CT Tables'!$D$7*E53 -> 1.0045 | E53: 2.009 | F53: =E53*'CT Tables'!$F$7 -> 3.0135 | G53: ='CT Tables'!$G$7*E53 -> 4.018 | H53: ='CT Tables'!$H$7*E53 -> 5.0225 | I53: ='CT Tables'!$I$7*E53 -> 6.027
C54: 7 | D54: ='CT Tables'!$D$7*E54 -> 0.6955 | E54: 1.391 | F54: =E54*'CT Tables'!$F$7 -> 2.0865 | G54: ='CT Tables'!$G$7*E54 -> 2.782 | H54: ='CT Tables'!$H$7*E54 -> 3.4775 | I54: ='CT Tables'!$I$7*E54 -> 4.173
C55: 7.5 | D55: ='CT Tables'!$D$7*E55 -> 0.7935 | E55: 1.587 | F55: =E55*'CT Tables'!$F$7 -> 2.3805 | G55: ='CT Tables'!$G$7*E55 -> 3.174 | H55: ='CT Tables'!$H$7*E55 -> 3.9675 | I55: ='CT Tables'!$I$7*E55 -> 4.761
C56: 8 | D56: ='CT Tables'!$D$7*E56 -> 1.6095 | E56: 3.219 | F56: =E56*'CT Tables'!$F$7 -> 4.8285 | G56: ='CT Tables'!$G$7*E56 -> 6.438 | H56: ='CT Tables'!$H$7*E56 -> 8.0475 | I56: ='CT Tables'!$I$7*E56 -> 9.657
C57: 8.5 | D57: ='CT Tables'!$D$7*E57 -> 5.0805 | E57: 10.161 | F57: =E57*'CT Tables'!$F$7 -> 15.2415 | G57: ='CT Tables'!$G$7*E57 -> 20.322 | H57: ='CT Tables'!$H$7*E57 -> 25.4025 | I57: ='CT Tables'!$I$7*E57 -> 30.483
C58: 9 | D58: ='CT Tables'!$D$7*E58 -> 16.246 | E58: 32.492 | F58: =E58*'CT Tables'!$F$7 -> 48.738 | G58: ='CT Tables'!$G$7*E58 -> 64.984 | H58: ='CT Tables'!$H$7*E58 -> 81.23 | I58: ='CT Tables'!$I$7*E58 -> 97.476
C59: CT units: | D59: mg/L*min | F59: 0.5 Log = 68.4%; 1.0 Log = 90.0%; 1.5 Log = 96.8%; 2 Log = 99.0%; 2.5 Log = 99.7%; 3 Log = 99.9%

Sheet References
B3: References
B4: Water Research 39 (2005) 1628 - 1638
B5: Kinetics of reactions between chlorine and the cyanobacterial toxins microcystins
B6: Juan L. Acero, Eva Rodriguez, Jussi Meriluoto
B8: Water Research 41 (2007) 2048 - 2056
B9: Kinetics of oxidation of cylindrospemospsin and anatoxin-a with chlorine, monochloramine and permanganate
B10: Eva Rodriguez, Ana Sordo, James S. Metcalf, Juan L. Acero

Sheet CYN ResearchData (hidden)
C16: Temp: 20 oC
C17: pH | D17: Kapp | E17: log(Kapp) | F17: log(Kapp) | G17: Kapp
C18: 4 | D18: 44.23 | E18: =LOG(D18) -> 1.645716939 | F18: =0.01007019*C18^5-0.31703635*C18^4+3.85051949*C18^3-22.63551238*C18^2+65.07685818*C18-72.07733407 -> 1.64571689 | G18: =10^F18 -> 44.22999497
C19: 5.1 | D19: 126.9 | E19: 2.103461622 | F19: 2.10346163 | G19: 126.9000024 | AH19: Temp: | AI19: 20 | AL19: Cl2: | AM19: 70.096 | AN19: g/mol
C20: 6.4 | D20: =(739.1+790.9)/2 -> 765 | E20: 2.883661435 | F20: 2.88366179 | G20: 765.0006248 | AH20: pH: | AI20: 8 | AL20: [H+]: | AM20: =10^-AI20 -> 1e-08
C21: 7.1 | D21: 1265.1 | E21: 3.102124856 | F21: 3.102125639 | G21: 1265.102281 | AH21: Kapp: | AI21: =(AM21*AM20^2+AM22*AM20*AM25+AM23*AM24*AM25)/((AM24+AM20)*(AM25+AM20)) -> 531.5831724 | AL21: K7: | AM21: 38.1
C22: 8 | D22: 536.8 | E22: 2.729812507 | F22: 2.72981425 | G22: 536.8021542 | AH22: [Cl2]: | AI22: 14.2 | AJ22: uM | AL22: K8: | AM22: =1.96*10^3 -> 1960
C23: 9 | D23: 53.18 | E23: 1.725748333 | F23: 1.72575194 | G23: 53.18044168 | AH23: Cl2: | AI23: =AI22/1000000*AM19*1000 -> 0.9953632 | AJ23: mg/L | AL23: K9: | AM23: 0.01
AH24: Kobs: | AI24: =AI22*AI25/1000000 -> 0.01796442 | AL24: Ka5 | AM24: =10^-AO24 -> 2.576321157e-08 | AN24: pKa5: | AO24: =-0.0103*AI19+7.795 -> 7.589
D25: pH: | E25: 7.5 | AH25: Kapp: | AI25: 1265.1 | AL25: Ka6 | AM25: =10^-AO25 -> 3.16227766e-07 | AN25: pKa6: | AO25: 6.5
D26: Temp: | E26: 20 | AH26: CYN | AI26: 1000 | AJ26: ug/L
D27: log(Kapp): | E27: =0.01007019*E25^5-0.31703635*E25^4+3.85051949*E25^3-22.63551238*E25^2+65.07685818*E25-72.07733407 -> 3.036943678 | AL27: MW CYN: | AM27: 415.43 | AN27: g/mol
D28: f: | E28: =EXP(-32700/(8.3145*(273.15+E26))) -> 1.491156121e-06 | AH28: ln(CYN) = | AI28: =LN(AI26/1000000/AM27)-AI34*AI22/1000000*_HRT3*60 -> -16.00618118 | AL28: Ea: | AM28: 32.7 | AN28: KJ/mol
D29: A: | E29: 832985000 | F29: for pH = 7, 20C | AH29: CyN | AI29: =EXP(AI28)*AM27*1000000 -> 46.46240573 | AL29: R: | AM29: 8.314 | AN29: J/(mol * K)
E30: =E28*E29 -> 1242.110682 | AL30: T: | AN30: K
D31: Kapp: | E31: =10^E27 -> 1088.788884 | F31: M-1*sec-1 | G31: at 20 oC
D33: CYNo: | E33: 1000 | F33: ug/L | G33: =E33/1000000/$AM$27*1000000 -> 2.407144405 | H33: umM/L
D34: CYNf: | E34: 1 | F34: ug/L | G34: =E34/1000000/$AM$27*1000000 -> 0.002407144405 | H34: umM/L | AI34: =EXP(LN(73.018)-AM28/(AM29*(AI19+273.15))) -> 72.04487728
D35: Ln [CYNf]/[CYNo]: | E35: =LN(E34/E33) -> -6.907755279
D36: Log | E36: =LOG(E33/E34) -> 3 | AH36: A: | AI36: =EXP(LN(AI21)+32700/(8.3145*(273.15+AI19))) -> 356490621.5
D37: Cl2 | E37: 1 | F37: mg/L | G37: =E37/1000/$AM$19*1000000 -> 14.26614928 | H37: umM/L
D39: CT: | E39: =G40*E37 -> 7.411997266 | F39: mg/L*min | AH39: Temp
D40: Tcal: | E40: =E35/(-E31*G37/1000000) -> 444.7198359 | F40: seconds | G40: =E40/60 -> 7.411997266 | H40: min | AH40: 20 | AI40: A | AJ40: Ln(A) | AK40: Ln(Acal) | AL40: Acal | AN40: A | AO40: Ln(A) | AP40: Ln(Acal) | AQ40: Acal
AH41: 6 | AI41: 326785588.8 | AJ41: =LN(AI41) -> 19.60481482 | AK41: =-0.00657049*AH41^5+0.29751989*AH41^4-5.12614457*AH41^3+41.79629732*AH41^2-160.85765257*AH41+252.83768119 -> 19.60488937 | AL41: =EXP(AK41) -> 326809950.9 | AN41: 295626862.5 | AO41: =LN(AN41) -> 19.50460862 | AP41: =0.02318747*AM41^5-0.73000317*AM41^4+8.86614878*AM41^3-52.12019339*AM41^2+149.8450036*AM41-152.54823628 -> -152.5482363 | AQ41: =EXP(AP41) -> 5.612324318e-67
E42: =(-32700/(8.3145*(273.15+E26))) -> -13.41595882 | AH42: 6.5 | AI42: 619511877 | AJ42: 20.24444243 | AK42: =-0.00657049*AH42^5+0.29751989*AH42^4-5.12614457*AH42^3+41.79629732*AH42^2-160.85765257*AH42+252.83768119 -> 20.24386788 | AL42: 619156035.3 | AN42: 576778201.3 | AO42: 20.17296835 | AP42: -152.5482363 | AQ42: 5.612324318e-67
E43: =LN(E29)+E42 -> 7.124567374 | H43: A: | I43: =EXP(LN(E31)+32700/(8.3145*(273.15+E26))) -> 730164245.5 | AH43: 7 | AI43: 798932939.2 | AJ43: 20.49878757 | AK43: 20.50012483 | AL43: 800002035.5 | AN43: 832981784.2 | AO43: 20.54052233 | AP43: -152.5482363 | AQ43: 5.612324318e-67
E44: =EXP(E43) -> 1242.110682 | AH44: 7.5 | AI44: 659750310.9 | AJ44: 20.307372 | AK44: 20.30549003 | AL44: 658509846.7 | AN44: 730164245.5 | AO44: 20.40878006 | AP44: -152.5482363 | AQ44: 5.612324318e-67
G45: Temp | AH45: 8 | AI45: 356490621.5 | AJ45: 19.69181849 | AK45: 19.69312239 | AL45: 356955752.7 | AN45: 359990578.1 | AO45: 19.70158842 | AP45: -152.5482363 | AQ45: 5.612324318e-67
G46: 20 | H46: A | I46: Ln(A) | J46: Ln(Acal) | K46: Acal | AH46: 8.5 | AI46: 142309315.7 | AJ46: 18.77351353 | AK46: 18.77287058 | AL46: 142217848.5 | AN46: 114042834.3 | AO46: 18.55208467 | AP46: -152.5482363 | AQ46: 5.612324318e-67
D47: =E31/(EXP(-32700/((273.15+20)*8.3145))) -> 730164245.5 | F47: pH | G47: 6 | H47: 295626862.5 | I47: =LN(H47) -> 19.50460862 | J47: =0.02318747*G47^5-0.73000317*G47^4+8.86614878*G47^3-52.12019339*G47^2+149.8450036*G47-152.54823628 -> 19.50461816 | K47: =EXP(J47) -> 295629683.6 | AH47: 9 | AI47: 48967429.83 | AJ47: 17.70666594 | AK47: 17.70663373 | AL47: 48965852.73 | AN47: 35663899.25 | AO47: 17.38964951 | AP47: -152.5482363 | AQ47: 5.612324318e-67
G48: 6.5 | H48: 576778201.3 | I48: 20.17296835 | J48: 20.17298204 | K48: 576786095
G49: 7 | H49: 832981784.2 | I49: 20.54052233 | J49: 20.54054147 | K49: 832997725.8
G50: 7.5 | H50: 730164245.5 | I50: 20.40878006 | J50: 20.40880624 | K50: 730183363.5
G51: 8 | H51: 359990578.1 | I51: 19.70158842 | J51: 19.70162356 | K51: 360003229.4
G52: 8.5 | H52: 114042834.3 | I52: 18.55208467 | J52: 18.55213106 | K52: 114048123.7
G53: 9 | H53: 35663899.25 | I53: 17.38964951 | J53: 17.38970981 | K53: 35666049.86
E55: More Accurate
F56: CYNo: | G56: 500 | H56: ug/L | I56: =G56/1000000/$AM$27*1000000 -> 1.203572202 | J56: umM/L | M56: CYNo: | N56: 500 | O56: ug/L | P56: =N56/1000000/$AM$27*1000000 -> 1.203572202 | Q56: umM/L
F57: CYNf: | G57: 1 | H57: ug/L | I57: =G57/1000000/$AM$27*1000000 -> 0.002407144405 | J57: umM/L | M57: CYNf: | N57: 1 | O57: ug/L | P57: =N57/1000000/$AM$27*1000000 -> 0.002407144405 | Q57: umM/L
F58: Ln [CYNf]/[CYNo]: | G58: =LN(G57/G56) -> -6.214608098 | M58: Ln [CYNf]/[CYNo]: | N58: =LN(N57/N56) -> -6.214608098
F59: Log | G59: =LOG(G56/G57) -> 2.698970004 | M59: Log | N59: =LOG(N56/N57) -> 2.698970004
F60: Cl2 | G60: 1 | H60: mg/L | I60: =G60/1000/$AM$19*1000000 -> 14.26614928 | J60: umM/L | M60: Cl2 | N60: 1 | O60: mg/L | P60: =N60/1000/$AM$19*1000000 -> 14.26614928 | Q60: umM/L
F61: pH: | G61: 6 | M61: pH: | N61: 6
F62: Temp: | G62: 10 | H62: oC | M62: Temp: | N62: 10 | O62: oC
F63: Ln(A): | G63: =(0.02318747*$G$61^5-0.73000317*$G$61^4+8.86614878*$G$61^3-52.12019339*$G$61^2+149.8450036*$G$61-152.54823628) -> 19.50461816 | M63: Ln(A): | N63: =(0.02318747*$G$61^5-0.73000317*$G$61^4+8.86614878*$G$61^3-52.12019339*$G$61^2+149.8450036*$G$61-152.54823628) -> 19.50461816
F64: Kapp: | G64: =EXP((0.02318747*$G$61^5-0.73000317*$G$61^4+8.86614878*$G$61^3-52.12019339*$G$61^2+149.8450036*$G$61-152.54823628)-32700/(8.3145*(273.15+$G$62))) -> 274.4717467 | H64: M-1*sec-1 | I64: w/temp corrections | M64: Kapp: | N64: =EXP((-0.00657049*N61^5+0.29751989*N61^4-5.12614457*N61^3+41.79629732*N61^2-160.85765257*N61+252.83768119)-32700/(8.3145*(273.15+N62))) -> 303.4204718 | O64: M-1*sec-1 | P64: w/temp corrections
F65: Ln(Kapp): | G65: =LN(G64) -> 5.614848329 | M65: Ln(Kapp): | N65: =LN(N64) -> 5.715119539
F66: T(cal): | G66: =G58/(-G64*I60/1000000) -> 1587.118436 | H66: seconds | I66: =G66/60 -> 26.45197393 | J66: min | M66: T(cal): | N66: =N58/(-N64*P60/1000000) -> 1435.69472 | O66: seconds | P66: =N66/60 -> 23.92824534 | Q66: min
F67: CT: | G67: =I66*G60 -> 26.45197393 | H67: mg/L*min | M67: CT: | N67: =P66*N60 -> 23.92824534 | O67: mg/L*min
D78: y = b + mx
D79: R: | E79: 8.3145 | F79: J/(mol * K)
D80: pH: | E80: =G61 -> 6
D81: Kapp: | E81: =G64 -> 274.4717467
D82: Ln(A) = | E82: =LN(E81)+32700/(8.3145*(273.15+20)) -> 19.03080715
D83: A = | E83: =EXP(E82) -> 184066405.1

Sheet MC_ResearchData (hidden)
B4: pH | C4: 6 | E4: 7 | G4: 8 | I4: 9
B5: Ka3 | C5: =10^(-7.5) -> 3.16227766e-08 | E5: =10^(-7.5) -> 3.16227766e-08 | G5: =10^(-7.5) -> 3.16227766e-08 | I5: =10^(-7.5) -> 3.16227766e-08
B6: K4 | C6: =2.07*10^7 -> 20700000 | E6: =2.07*10^7 -> 20700000 | G6: =2.07*10^7 -> 20700000 | I6: =2.07*10^7 -> 20700000
B7: K5 | C7: 86.2 | E7: 100 | G7: 116 | I7: 133.4
B8: K6 | C8: 5 | E8: 5.95 | G8: 6.78 | I8: 7.74
B10: Kapp | C10: =(C6*(10^-C4)^2+C7*10^-C4+C8*C5)/(C5+10^-C4) -> 103.7764155 | E10: =(E6*(10^-E4)^2+E7*10^-E4+E8*E5)/(E5+10^-E4) -> 78.97687459 | G10: =(G6*(10^-G4)^2+G7*10^-G4+G8*G5)/(G5+10^-G4) -> 33.07017306 | I10: =(I6*(10^-I4)^2+I7*10^-I4+I8*I5)/(I5+10^-I4) -> 11.59254454
B12: MC | C12: 1 | E12: 1 | G12: 1 | I12: 1
B13: Mco | C13: 50 | E13: 50 | G13: 50 | I13: 10
B14: Temp: | C14: 10 | D14: oC | E14: 15 | F14: oC | G14: 20 | H14: oC | I14: 25 | J14: oC
B15: Cl2 | C15: 1 | D15: mg/L | E15: 1 | F15: mg/L | G15: 1 | H15: mg/L | I15: 1 | J15: mg/L
B16: Cl2 | C16: =C15/(35.45*2*1000) -> 1.410437236e-05 | D16: moles | E16: =E15/(35.45*2*1000) -> 1.410437236e-05 | F16: moles | G16: =G15/(35.45*2*1000) -> 1.410437236e-05 | H16: moles | I16: =I15/(35.45*2*1000) -> 1.410437236e-05 | J16: moles
B17: CT | C17: =-LN(C12/C13)/C10 -> 0.037696648 | D17: Mol*sec | E17: =-LN(E12/E13)/E10 -> 0.04953377841 | F17: Mol*sec | G17: =-LN(G12/G13)/G10 -> 0.1182946034 | H17: Mol*sec | I17: =-LN(I12/I13)/I10 -> 0.1986263744 | J17: Mol*sec
B18: CT | C18: =C17/60/C16 -> 44.54487239 | D18: mg/L*min | E18: =E17/60/E16 -> 58.53241482 | F18: mg/L*min | G18: =G17/60/G16 -> 139.7847897 | H18: mg/L*min | I18: =I17/60/I16 -> 234.7101658 | J18: mg/L*min
T24: 10 | U24: 86.2 | V24: 5
T25: 15 | U25: 100 | V25: 5.95
T26: 20 | U26: 116 | V26: 6.78
T27: 25 | U27: 133.4 | V27: 7.74
T29: x to 1 | U29: Log
T30: 3.163 | U30: 0.5
T31: 10 | U31: 1
T32: 31.623 | U32: 1.5
T33: 100 | U33: 2
B43: Ka3 | C43: =10^(-7.5) -> 3.16227766e-08
B44: K4 | C44: =2.07*10^7 -> 20700000
B45: K5 | C45: =3.152*'Cyanotoxin-Calc'!C8+53.74 -> 101.02
B46: K6 | C46: =0.181*'Cyanotoxin-Calc'!C8+3.2 -> 5.915
B47: Kapp | C47: =(C44*(10^-'Cyanotoxin-Calc'!C7)^2+C45*10^-'Cyanotoxin-Calc'!C7+C46*C43)/(C43+10^-'Cyanotoxin-Calc'!C7) -> 28.81400093
B48: Cl2 | C48: =1/(35.45*2*1000) -> 1.410437236e-05 | D48: moles
B49: Cl2 | C49: 1 | D49: mg/L
B50: CT | C50: =-LN('Cyanotoxin-Calc'!C10/'Cyanotoxin-Calc'!C9)/MC_ResearchData!C47 -> 0.2016083433 | D50: mol*sec
B51: CT | C51: =MC_ResearchData!C50/60/C48 -> 238.233859 | D51: mg/L*min
